fUST/lending_fUST_20251125
["ID","MTS","AMOUNT","RATE_DAILY","PERIOD"]
[394882955,1764062902228,-552.54340236,6.275e-05,2]
[394882956,1764062902258,-500.0,6.275e-05,2]
[394882957,1764062902288,-500.0,6.275e-05,2]
[394882958,1764062902319,-182.0957382,6.275e-05,2]
[394882959,1764062902348,-306.53055243,6.308e-05,2]
[394882960,1764062902377,-435.54742185,6.313e-05,2]
[394882961,1764062902405,-512.22107001,6.313e-05,2]
[394882962,1764062902434,-500.0,6.313e-05,2]
[394882963,1764062902453,-469.0,6.313e-05,2]
[394882964,1764062902472,-31.0,6.313e-05,2]
[394882965,1764062902481,-269.0,6.338e-05,2]
[394882966,1764062902492,-231.0,6.338e-05,2]
[394882967,1764062902501,-69.0,6.338e-05,2]
[394882968,1764062902512,-113.39026182,6.338e-05,2]
[394882969,1764062902521,-186.60973818,6.338e-05,2]
[394882970,1764062902540,-206.0,6.338e-05,2]
[394882971,1764062902558,-107.39026182,6.338e-05,2]
[394882972,1764062902567,-500.0,6.338e-05,2]
[394882973,1764062902576,-195.67825615,6.338e-05,2]
[394882974,1764062902585,-396.93148203,6.338e-05,2]
[394882975,1764062902596,-103.06851797,6.338e-05,2]
[394882976,1764062902605,-449.47488439,6.339e-05,2]
[394882977,1764062902625,-500.0,6.339e-05,2]
[394882978,1764062902636,-500.0,6.339e-05,2]
[394882979,1764062902646,-182.0957382,6.339e-05,2]
[394882980,1764062902657,-306.53055243,6.339e-05,2]
[394882981,1764062902667,-435.54742185,6.339e-05,2]
[394882982,1764062902678,-512.22107001,6.339e-05,2]
[394882983,1764062902695,-500.0,6.339e-05,2]
[394882984,1764062902712,-472.1236303,6.339e-05,2]
[394882985,1764062958153,-300.0,6.275e-05,2]
[394882986,1764062958175,-10284.0,6.276e-05,2]
[394883033,1764063032459,-300.0,6.275e-05,2]
[394883035,1764063032468,-300.39994138,6.276e-05,2]
[394883037,1764063032478,-325.99537964,6.276e-05,2]
[394883039,1764063032489,-3705.04028483,6.276e-05,2]
[394883041,1764063032501,-853.979999,6.276e-05,2]
[394883043,1764063032512,-1466.98314437,6.276e-05,2]
[394883046,1764063032530,-308.09929999,6.276e-05,2]
[394883048,1764063032541,-512.08208021,6.276e-05,2]
[394883050,1764063032552,-426.34100583,6.276e-05,2]
[394883055,1764063038404,-314.4785267,6.276e-05,2]
[394883056,1764063038457,-8518.19901842,6.276e-05,2]
[394883057,1764063038469,-5844.76143639,6.276e-05,2]
[394883058,1764063038480,-154.98630771,6.313e-05,2]
[394883059,1764063038492,-500.0,6.313e-05,2]
[394883060,1764063038502,-500.0,6.313e-05,2]
[394883061,1764063038512,-500.0,6.313e-05,2]
[394883062,1764063038522,-602.96137039,6.313e-05,2]
[394883063,1764063038532,-500.0,6.313e-05,2]
[394883064,1764063038542,-1000.0,6.335e-05,2]
[394883065,1764063038551,-1000.0,6.335e-05,2]
[394883066,1764063038562,-1000.0,6.335e-05,2]
[394883067,1764063038573,-1000.0,6.335e-05,2]
[394883068,1764063038582,-1000.0,6.335e-05,2]
[394883069,1764063038592,-500.0,6.335e-05,2]
[394883070,1764063038602,-1000.0,6.335e-05,2]
[394883071,1764063038611,-151.0,6.335e-05,2]
[394883072,1764063038621,-500.0,6.335e-05,2]
[394883073,1764063038631,-1000.0,6.335e-05,2]
[394883074,1764063038641,-151.0,6.335e-05,2]
[394883075,1764063038650,-500.0,6.335e-05,2]
[394883076,1764063038659,-1000.0,6.335e-05,2]
[394883077,1764063038669,-151.0,6.335e-05,2]
[394883078,1764063038678,-500.0,6.335e-05,2]
[394883079,1764063038688,-151.0,6.335e-05,2]
[394883080,1764063038699,-881.98693526,6.335e-05,2]
[394883081,1764063038708,-151.0,6.335e-05,2]
[394883082,1764063038717,-500.0,6.335e-05,2]
[394883083,1764063038726,-151.0,6.335e-05,2]
[394883084,1764063038736,-151.0,6.335e-05,2]
[394883085,1764063038745,-500.0,6.335e-05,2]
[394883086,1764063038755,-151.0,6.335e-05,2]
[394883087,1764063038764,-151.0,6.335e-05,2]
[394883088,1764063038773,-500.0,6.335e-05,2]
[394883089,1764063038782,-250.0,6.335e-05,2]
[394883090,1764063038792,-151.0,6.335e-05,2]
[394883091,1764063038801,-500.0,6.335e-05,2]
[394883092,1764063038817,-250.0,6.335e-05,2]
[394883093,1764063038833,-151.0,6.335e-05,2]
[394883094,1764063038843,-151.0,6.335e-05,2]
[394883095,1764063038853,-500.0,6.335e-05,2]
[394883096,1764063038863,-250.0,6.335e-05,2]
[394883097,1764063038874,-151.0,6.335e-05,2]
[394883098,1764063038884,-151.0,6.335e-05,2]
[394883099,1764063038894,-500.0,6.335e-05,2]
[394883100,1764063038904,-250.0,6.335e-05,2]
[394883101,1764063038914,-151.0,6.335e-05,2]
[394883102,1764063038923,-89.90355025,6.335e-05,2]
[394883103,1764063038935,-410.09644975,6.335e-05,2]
[394883104,1764063038944,-250.0,6.335e-05,2]
[394883105,1764063038954,-151.0,6.335e-05,2]
[394883106,1764063038963,-78.52355025,6.335e-05,2]
[394883140,1764063040894,-72.47644975,6.335e-05,2]
[394883141,1764063040903,-500.0,6.335e-05,2]
[394883142,1764063040913,-250.0,6.335e-05,2]
[394883143,1764063040922,-151.0,6.335e-05,2]
[394883144,1764063040931,-151.0,6.335e-05,2]
[394883146,1764063040941,-500.0,6.335e-05,2]
[394883147,1764063040951,-250.0,6.335e-05,2]
[394883149,1764063040960,-151.0,6.335e-05,2]
[394883150,1764063040969,-151.0,6.335e-05,2]
[394883151,1764063040978,-500.0,6.335e-05,2]
[394883152,1764063040987,-250.0,6.335e-05,2]
[394883153,1764063040997,-151.0,6.335e-05,2]
[394883154,1764063041005,-151.0,6.335e-05,2]
[394883155,1764063041014,-500.0,6.335e-05,2]
[394883156,1764063041024,-250.0,6.335e-05,2]
[394883157,1764063041033,-151.0,6.335e-05,2]
[394883158,1764063041042,-268.10813951,6.335e-05,2]
[394883159,1764063041051,-250.0,6.335e-05,2]
[394883160,1764063041060,-278.93355345,6.335e-05,2]
[394883161,1764063041072,-2.50431523,6.335e-05,2]
[394883162,1764063041082,-250.0,6.335e-05,2]
[394883163,1764063041091,-151.0,6.335e-05,2]
[394883164,1764063041100,-250.0,6.335e-05,2]
[394883165,1764063041110,-250.0,6.335e-05,2]
[394883166,1764063041119,-151.0,6.335e-05,2]
[394883167,1764063041128,-161.96102856,6.335e-05,2]
[394883168,1764063042018,-3e-08,6.335e-05,2]
[394883169,1764063042035,-88.03897141,6.335e-05,2]
[394883170,1764063042045,-250.0,6.335e-05,2]
[394883171,1764063042055,-151.0,6.335e-05,2]
[394883172,1764063042064,-250.0,6.335e-05,2]
[394883173,1764063042074,-250.0,6.335e-05,2]
[394883174,1764063042084,-250.0,6.335e-05,2]
[394883175,1764063042093,-151.0,6.335e-05,2]
[394883176,1764063042103,-14321.88545626,6.335e-05,2]
[394883177,1764063042113,-250.0,6.335e-05,2]
[394883178,1764063042123,-250.0,6.335e-05,2]
[394883179,1764063042133,-265.36943653,6.335e-05,2]
[394883180,1764063042142,-250.0,6.335e-05,2]
[394883181,1764063042151,-312.40207462,6.335e-05,2]
[394883182,1764063042160,-250.0,6.335e-05,2]
[394883183,1764063042170,-250.0,6.335e-05,2]
[394883184,1764063042179,-250.0,6.335e-05,2]
[394883185,1764063042188,-250.0,6.335e-05,2]
[394883186,1764063042197,-250.0,6.335e-05,2]
[394883187,1764063042207,-250.0,6.335e-05,2]
[394883188,1764063042216,-250.0,6.335e-05,2]
[394883189,1764063042225,-250.0,6.335e-05,2]
[394883190,1764063042234,-250.0,6.335e-05,2]
[394883191,1764063042243,-250.0,6.335e-05,2]
[394883192,1764063042256,-250.0,6.335e-05,2]
[394883193,1764063042265,-250.0,6.335e-05,2]
[394883194,1764063042275,-250.0,6.335e-05,2]
[394883195,1764063042283,-250.0,6.335e-05,2]
[394883196,1764063042293,-250.0,6.335e-05,2]
[394883197,1764063042303,-250.0,6.335e-05,2]
[394883198,1764063042311,-250.0,6.335e-05,2]
[394883199,1764063042321,-250.0,6.335e-05,2]
[394883200,1764063042330,-250.0,6.335e-05,2]
[394883201,1764063042342,-250.0,6.335e-05,2]
[394883202,1764063042351,-250.0,6.335e-05,2]
[394883203,1764063042360,-250.0,6.335e-05,2]
[394883204,1764063042370,-250.0,6.335e-05,2]
[394883205,1764063042380,-250.0,6.335e-05,2]
[394883206,1764063042390,-11013.63579115,6.339e-05,2]
[394883207,1764063042402,-53620.34157713,6.339e-05,2]
[394883219,1764063044626,-568.44326117,6.339e-05,2]
[394883226,1764063045505,-476.59,6.339e-05,2]
[394883237,1764063046787,-1897.14749613,6.339e-05,2]
[394883238,1764063055157,500.0,6.272e-05,2]
[394883239,1764063077496,500.0,6.272e-05,2]
[394883240,1764063091645,-156.0,0.0002142,120]
[394883241,1764063091665,-172.0,0.0002142,120]
[394883242,1764063091684,-173.0,0.0002142,120]
[394883243,1764063091704,-499.0,0.00021446,120]
[394883244,1764063092088,-24.0,0.00021446,120]
[394883245,1764063092108,-314.0,0.00021446,120]
[394883246,1764063093039,-1000.0,0.00021596,120]
[394883247,1764063093410,-535.0,0.00021596,120]
[394883248,1764063093430,-465.0,0.00021596,120]
[394883249,1764063093973,-456.0,0.00021596,120]
[394883250,1764063093998,-544.0,0.000225,120]
[394883251,1764063094391,-456.0,0.000225,120]
[394883252,1764063099849,3769.32321194,6.276e-05,2]
[394883253,1764063102936,249.754,6.212e-05,2]
[394883255,1764063129948,300.0,6.275e-05,2]
[394883256,1764063187839,-500.0,6.334e-05,2]
[394883257,1764063190346,500.0,6.334e-05,2]
[394883258,1764063197096,536.9747793,6.334e-05,2]
[394883259,1764063197499,500.0,6.275e-05,2]
[394883260,1764063197561,500.0,6.275e-05,2]
[394883261,1764063197621,500.0,6.275e-05,2]
[394883262,1764063197684,500.0,6.275e-05,2]
[394883263,1764063197732,500.0,6.275e-05,2]
[394883264,1764063197774,500.0,6.275e-05,2]
[394883265,1764063197829,500.0,6.275e-05,2]
[394883266,1764063197875,500.0,6.275e-05,2]
[394883267,1764063197935,500.0,6.275e-05,2]
[394883268,1764063197974,500.0,6.275e-05,2]
[394883269,1764063198056,500.0,6.275e-05,2]
[394883270,1764063198104,500.0,6.275e-05,2]
[394883271,1764063198144,500.0,6.275e-05,2]
[394883272,1764063198182,500.0,6.275e-05,2]
[394883273,1764063198218,450.0,6.275e-05,2]
[394883274,1764063198255,500.0,6.275e-05,2]
[394883275,1764063198301,13.0352207,6.275e-05,2]
[394883276,1764063198328,486.9647793,6.275e-05,2]
[394883277,1764063198392,500.0,6.275e-05,2]
[394883278,1764063198447,500.0,6.275e-05,2]
[394883279,1764063234264,-1200.0,6.338e-05,2]
[394883280,1764063234294,-300.0,6.338e-05,2]
[394883281,1764063234836,-500.0,6.338e-05,2]
[394883282,1764063234859,-138.09561151,6.339e-05,2]
[394883283,1764063236440,-156.81564143,6.339e-05,2]
[394883284,1764063238112,-264.33080883,6.339e-05,2]
[394883285,1764063242111,-216.16100644,6.339e-05,2]
[394883286,1764063243024,300.0,6.338e-05,2]
[394883287,1764063245195,248.86279623,6.276e-05,2]
[394883288,1764063246158,-300.0,6.339e-05,2]
[394883289,1764063249777,-351.06817183,6.339e-05,2]
[394883290,1764063250215,-2456.28309251,6.339e-05,2]
[394883291,1764063250240,-10000.01,6.339e-05,2]
[394883292,1764063250291,-10000.01,6.339e-05,2]
[394883293,1764063250305,-10000.01,6.339e-05,2]
[394883294,1764063250387,-10000.01,6.339e-05,2]
[394883295,1764063250527,-10000.01,6.339e-05,2]
[394883296,1764063251993,-377.54528005,6.339e-05,2]
[394883297,1764063252594,-10000.01,6.339e-05,2]
[394883298,1764063253610,-274.67365256,6.339e-05,2]
[394883299,1764063255239,-232.40528174,6.339e-05,2]
[394883300,1764063258700,-10000.01,6.339e-05,2]
[394883301,1764063258887,-10000.01,6.339e-05,2]
[394883302,1764063259050,-10000.01,6.339e-05,2]
[394883303,1764063259157,-10000.01,6.339e-05,2]
[394883304,1764063259316,-10000.01,6.339e-05,2]
[394883305,1764063259437,-10000.01,6.339e-05,2]
[394883306,1764063262771,-255.58362142,6.276e-05,2]
[394883307,1764063264758,-213.32974665,6.276e-05,2]
[394883308,1764063268337,-222.73237281,6.276e-05,2]
[394883309,1764063268764,4700.0,6.213e-05,2]
[394883310,1764063269963,-240.15663248,6.276e-05,2]
[394883311,1764063276258,-195.48687758,6.276e-05,2]
[394883312,1764063276827,11056.04928821,6.213e-05,2]
[394883313,1764063279612,-152.67237092,6.276e-05,2]
[394883314,1764063281262,-591.48728285,6.276e-05,2]
[394883315,1764063283337,-283.27542998,6.276e-05,2]
[394883316,1764063285794,-206.68240134,6.276e-05,2]
[394883317,1764063288235,-291.05898406,6.276e-05,2]
[394883318,1764063290937,-255.42937001,6.276e-05,2]
[394883319,1764063291862,381.60954386,6.213e-05,2]
[394883320,1764063292533,-163.44,6.213e-05,2]
[394883321,1764063315993,-55.86670373,6.213e-05,2]
[394883322,1764063316014,-120.52355409,6.275e-05,2]
[394883323,1764063458976,1079.47644591,6.15e-05,2]
[394883324,1764063479382,-175.0,0.00023,120]
[394883325,1764063481322,1079.47644591,6.15e-05,2]
[394883326,1764063503523,1079.47644591,6.15e-05,2]
[394883327,1764063518970,1079.47644591,6.15e-05,2]
[394883328,1764063527251,297.02808079,6.181e-05,2]
[394883329,1764063542378,297.02808079,6.181e-05,2]
[394883330,1764063550192,297.02808079,6.181e-05,2]
[394883331,1764063565455,297.02808079,6.181e-05,2]
[394883332,1764063573333,297.02808079,6.181e-05,2]
[394883333,1764063588536,297.02808079,6.181e-05,2]
[394883334,1764063596370,297.02808079,6.181e-05,2]
[394883335,1764063611761,297.02808079,6.181e-05,2]
[394883336,1764063619583,297.02808079,6.181e-05,2]
[394883337,1764063635298,297.02808079,6.181e-05,2]
[394883338,1764063643140,297.02808079,6.181e-05,2]
[394883339,1764063666869,297.02808079,6.153e-05,2]
[394883340,1764063689961,297.02808079,6.153e-05,2]
[394883341,1764063702903,199.804,6.114e-05,2]
[394883342,1764063712783,297.02808079,6.153e-05,2]
[394883343,1764063735416,297.02808079,6.153e-05,2]
[394883344,1764063757451,297.02808079,6.153e-05,2]
[394883345,1764063779942,297.02808079,6.153e-05,2]
[394883346,1764063802675,297.02808079,6.153e-05,2]
[394883347,1764063812264,-221.89611089,6.215e-05,2]
[394883348,1764063812683,2111.0732371,5.285e-05,2]
[394883349,1764063813967,-75.1319699,6.215e-05,2]
[394883350,1764063813987,-300.0,6.238e-05,2]
[394883351,1764063814009,-13.67558469,6.238e-05,2]
[394883352,1764063816558,-223.30748358,6.238e-05,2]
[394883353,1764063817905,1738.89927724,6.176e-05,2]
[394883354,1764063819958,-209.84813309,6.238e-05,2]
[394883355,1764063822118,-53.16879864,6.238e-05,2]
[394883356,1764063822142,-156.09748705,6.238e-05,2]
[394883357,1764063825333,-163.49035014,6.238e-05,2]
[394883358,1764063825734,1319.78485846,6.176e-05,2]
[394883359,1764063840993,-106.29450832,6.238e-05,2]
[394883360,1764063841018,-279.89418417,6.238e-05,2]
[394883361,1764063842042,1156.29450832,6.176e-05,2]
[394883362,1764063843716,-232.50700278,6.238e-05,2]
[394883363,1764063845932,-67.49299722,6.238e-05,2]
[394883364,1764063845959,-217.44495077,6.238e-05,2]
[394883365,1764063848727,-2.66086506,6.238e-05,2]
[394883366,1764063848755,-263.2690952,6.238e-05,2]
[394883367,1764063850068,552.66086506,6.176e-05,2]
[394883368,1764063851019,-165.12552179,6.238e-05,2]
[394883369,1764063856298,-121.60538301,6.238e-05,2]
[394883370,1764063856321,-360.40460826,6.239e-05,2]
[394883371,1764063860979,-317.33567755,6.239e-05,2]
[394883372,1764063863231,-215.34911615,6.239e-05,2]
[394883373,1764063865721,11737.99423233,6.177e-05,2]
[394883374,1764063866321,-170.59340552,6.239e-05,2]
[394883375,1764063869058,-187.05912285,6.239e-05,2]
[394883376,1764063872930,-165.54453189,6.239e-05,2]
[394883377,1764063873593,10000.01,6.177e-05,2]
[394883378,1764063873617,17583.71838798,6.177e-05,2]
[394883379,1764063876183,-154.55999111,6.239e-05,2]
[394883380,1764063878402,-157.69450115,6.239e-05,2]
[394883381,1764063881080,-365.67639123,6.239e-05,2]
[394883382,1764063885642,-326.70306865,6.239e-05,2]
[394883383,1764063886714,-10000.01,6.239e-05,2]
[394883384,1764063886843,-10000.01,6.239e-05,2]
[394883385,1764063886948,-10000.01,6.239e-05,2]
[394883386,1764063887082,-10000.01,6.239e-05,2]
[394883387,1764063887237,-10000.01,6.239e-05,2]
[394883388,1764063888837,-206.68240134,6.239e-05,2]
[394883389,1764063889290,-10000.01,6.239e-05,2]
[394883390,1764063891971,-297.32611889,6.239e-05,2]
[394883391,1764063892374,-10000.01,6.239e-05,2]
[394883392,1764063892530,-10000.01,6.239e-05,2]
[394883393,1764063892647,-10000.01,6.239e-05,2]
[394883394,1764063892767,-10000.01,6.239e-05,2]
[394883395,1764063892930,-10000.01,6.239e-05,2]
[394883396,1764063895829,-189.91196234,6.239e-05,2]
[394883397,1764063896386,2246.03524453,6.177e-05,2]
[394883398,1764063899230,-175.36913142,6.239e-05,2]
[394883399,1764063900861,-317.33567755,6.239e-05,2]
[394883400,1764063902609,-170.74272771,6.238e-05,2]
[394883401,1764063904186,-129.25727229,6.238e-05,2]
[394883402,1764063904207,-141.62454602,6.238e-05,2]
[394883403,1764063904716,1025.5963556,6.177e-05,2]
[394883404,1764063906045,-158.37545398,6.238e-05,2]
[394883405,1764063906066,-111.96342552,6.238e-05,2]
[394883406,1764063908182,-188.03657448,6.238e-05,2]
[394883407,1764063908209,-47.16320542,6.238e-05,2]
[394883408,1764063909788,-226.56120338,6.238e-05,2]
[394883409,1764063911471,-26.2755912,6.238e-05,2]
[394883410,1764063911499,-196.85436886,6.238e-05,2]
[394883411,1764063912582,387.65777513,6.176e-05,2]
[394883412,1764063913823,-189.04362858,6.238e-05,2]
[394883413,1764063918522,-171.39855765,6.238e-05,2]
[394883414,1764063920717,642.70344491,6.176e-05,2]
[394883415,1764063922501,-191.97854157,6.238e-05,2]
[394883416,1764063925973,-269.74083309,6.238e-05,2]
[394883417,1764063927772,-167.07545631,6.238e-05,2]
[394883418,1764063930090,-13.90861394,6.238e-05,2]
[394883419,1764063930112,-263.00907554,6.239e-05,2]
[394883420,1764063932982,-173.84884742,6.239e-05,2]
[394883421,1764063935755,-300.0,6.239e-05,2]
[394883422,1764063937636,-175.72484055,6.239e-05,2]
[394883423,1764063937662,-178.30822142,6.239e-05,2]
[394883424,1764063942354,-284.49386959,6.239e-05,2]
[394883425,1764063943508,5918.67620518,6.177e-05,2]
[394883426,1764063945148,-382.94834772,6.239e-05,2]
[394883427,1764063948497,-202.95329343,6.239e-05,2]
[394883428,1764063950115,-220.54876471,6.239e-05,2]
[394883429,1764063951762,-291.64286549,6.239e-05,2]
[394883431,1764063953929,-206.57900651,6.238e-05,2]
[394883432,1764063953954,-93.00365091,6.239e-05,2]
[394883433,1764063955665,-300.0,6.239e-05,2]
[394883434,1764063957491,-183.53429916,6.239e-05,2]
[394883435,1764063957892,206.68240134,6.144e-05,2]
[394883436,1764063959654,-255.56420924,6.239e-05,2]
[394883437,1764063962285,-266.0,6.238e-05,2]
[394883438,1764063965012,-178.28033892,6.237e-05,2]
[394883439,1764063965863,2687.26830676,6.176e-05,2]
[394883440,1764063967657,-121.71966108,6.237e-05,2]
[394883441,1764063967690,-44.83965866,6.238e-05,2]
[394883453,1764063971089,-168.11075791,6.238e-05,2]
[394883465,1764063973437,-21.04958343,6.238e-05,2]
[394883466,1764063973467,-213.00614508,6.238e-05,2]
[394883467,1764063975944,-264.7672137,6.238e-05,2]
[394883468,1764063988865,1011.77335878,6.176e-05,2]
[394883489,1764063998105,-22.22664122,6.238e-05,2]
[394883490,1764063998133,-197.20297212,6.238e-05,2]
[394883502,1764064081477,-187.79861004,6.237e-05,2]
[394883503,1764064089754,304.99988771,6.175e-05,2]
[394883504,1764064091087,-173.92572809,6.237e-05,2]
[394883505,1764064093965,-304.99988771,6.237e-05,2]
[394883506,1764064097603,489.47346968,6.175e-05,2]
[394883507,1764064110980,-174.04848096,6.237e-05,2]
[394883508,1764064113231,847.02590324,6.175e-05,2]
[394883509,1764064113787,-163.77616724,6.237e-05,2]
[394883510,1764064115875,-239.68371052,6.237e-05,2]
[394883511,1764064119719,-143.56602548,6.237e-05,2]
[394883512,1764064119741,-300.0,6.237e-05,2]
[394883513,1764064119768,-101.71168082,6.238e-05,2]
[394883514,1764064121086,443.56602548,6.175e-05,2]
[394883515,1764064123145,-201.08534706,6.238e-05,2]
[394883516,1764064123173,-130.82174833,6.238e-05,2]
[394883517,1764064126072,-176.36567888,6.238e-05,2]
[394883518,1764064136831,3145.02337512,6.176e-05,2]
[394883519,1764064138435,-192.81257279,6.238e-05,2]
[394883520,1764064138462,-189.28784678,6.238e-05,2]
[394883521,1764064142115,-234.21936895,6.238e-05,2]
[394883522,1764064144928,300.0,6.175e-05,2]
[394883523,1764064144954,-270.62164725,6.237e-05,2]
[394883524,1764064146982,-29.37835275,6.237e-05,2]
[394883525,1764064147008,-76.49278427,6.238e-05,2]
[394883526,1764064147033,-72.61674228,6.238e-05,2]
[394883527,1764064167161,2365.88910981,6.176e-05,2]
[394883528,1764064203853,8982.34236003,6.176e-05,2]
[394883529,1764064226706,13250.0,6.173e-05,2]
[394883570,1764064233191,-250.0,6.235e-05,2]
[394883571,1764064233200,-250.0,6.235e-05,2]
[394883572,1764064233209,-250.0,6.235e-05,2]
[394883573,1764064233218,-250.0,6.235e-05,2]
[394883574,1764064233228,-250.0,6.235e-05,2]
[394883575,1764064233237,-250.0,6.235e-05,2]
[394883576,1764064233247,-250.0,6.235e-05,2]
[394883577,1764064233257,-500.0,6.235e-05,2]
[394883578,1764064233266,-250.0,6.235e-05,2]
[394883579,1764064233277,-500.0,6.235e-05,2]
[394883580,1764064233287,-250.0,6.235e-05,2]
[394883581,1764064233296,-500.0,6.235e-05,2]
[394883582,1764064233305,-250.0,6.235e-05,2]
[394883583,1764064233315,-500.0,6.235e-05,2]
[394883584,1764064233325,-250.0,6.235e-05,2]
[394883585,1764064233335,-500.0,6.235e-05,2]
[394883586,1764064233345,-250.0,6.235e-05,2]
[394883587,1764064233355,-500.0,6.235e-05,2]
[394883588,1764064233364,-250.0,6.235e-05,2]
[394883589,1764064233375,-500.0,6.235e-05,2]
[394883590,1764064233385,-250.0,6.235e-05,2]
[394883591,1764064233395,-250.0,6.235e-05,2]
[394883592,1764064233405,-500.0,6.235e-05,2]
[394883593,1764064233415,-250.0,6.235e-05,2]
[394883594,1764064233424,-250.0,6.235e-05,2]
[394883595,1764064233434,-500.0,6.235e-05,2]
[394883596,1764064233443,-250.0,6.235e-05,2]
[394883597,1764064233454,-500.0,6.235e-05,2]
[394883598,1764064233462,-250.0,6.235e-05,2]
[394883599,1764064233472,-500.0,6.235e-05,2]
[394883600,1764064233481,-250.0,6.235e-05,2]
[394883601,1764064233491,-500.0,6.235e-05,2]
[394883602,1764064233501,-250.0,6.235e-05,2]
[394883603,1764064233511,-500.0,6.235e-05,2]
[394883604,1764064233521,-250.0,6.235e-05,2]
[394883605,1764064233531,-500.0,6.235e-05,2]
[394883606,1764064233540,-250.0,6.235e-05,2]
[394883607,1764064233550,-500.0,6.235e-05,2]
[394883608,1764064233559,-213.60550542,6.235e-05,2]
[394883679,1764064243231,-3e-08,6.235e-05,2]
[394883688,1764064244919,-24.38106815,6.235e-05,2]
[394883702,1764064246803,-12.0134264,6.235e-05,2]
[394883703,1764064246813,-250.0,6.235e-05,2]
[394883704,1764064246822,-250.0,6.235e-05,2]
[394883705,1764064246832,-250.0,6.235e-05,2]
[394883706,1764064246842,-250.0,6.235e-05,2]
[394883707,1764064246852,-250.0,6.235e-05,2]
[394883708,1764064246861,-250.0,6.235e-05,2]
[394883709,1764064246871,-718.55966446,6.236e-05,2]
[394883710,1764064246880,-718.55966446,6.236e-05,2]
[394883711,1764064246889,-400.65200416,6.236e-05,2]
[394883712,1764064246899,-718.55966446,6.236e-05,2]
[394883714,1764064246908,-718.55966446,6.236e-05,2]
[394883716,1764064246918,-500.0,6.236e-05,2]
[394883718,1764064246927,-718.55966446,6.236e-05,2]
[394883720,1764064246936,-718.55966446,6.236e-05,2]
[394883721,1764064246945,-718.55966446,6.236e-05,2]
[394883722,1764064246955,-718.55966446,6.236e-05,2]
[394883723,1764064246964,-718.55966446,6.236e-05,2]
[394883724,1764064246974,-718.55966446,6.236e-05,2]
[394883725,1764064246982,-718.55966446,6.236e-05,2]
[394883726,1764064246991,-718.55966446,6.236e-05,2]
[394883727,1764064247001,-718.55966446,6.236e-05,2]
[394883728,1764064247010,-718.55966446,6.236e-05,2]
[394883729,1764064247019,-718.55966446,6.236e-05,2]
[394883730,1764064247030,-718.55966446,6.236e-05,2]
[394883731,1764064247041,-718.55966446,6.236e-05,2]
[394883732,1764064247052,-718.55966446,6.236e-05,2]
[394883733,1764064247061,-718.55966446,6.236e-05,2]
[394883734,1764064247071,-718.55966446,6.236e-05,2]
[394883735,1764064247083,-718.55966446,6.236e-05,2]
[394883736,1764064247092,-718.55966446,6.236e-05,2]
[394883737,1764064247101,-718.55966446,6.236e-05,2]
[394883738,1764064247110,-718.55966446,6.236e-05,2]
[394883739,1764064247119,-718.55966446,6.236e-05,2]
[394883740,1764064247128,-718.55966446,6.236e-05,2]
[394883741,1764064247137,-718.55966446,6.236e-05,2]
[394883742,1764064247146,-718.55966446,6.236e-05,2]
[394883743,1764064247155,-718.55966446,6.236e-05,2]
[394883744,1764064247164,-718.55966446,6.236e-05,2]
[394883745,1764064247173,-718.55966446,6.236e-05,2]
[394883746,1764064247182,-718.55966446,6.236e-05,2]
[394883747,1764064247191,-718.55966446,6.236e-05,2]
[394883748,1764064247200,-718.55966446,6.236e-05,2]
[394883749,1764064247209,-718.55966446,6.236e-05,2]
[394883750,1764064247219,-718.55966446,6.236e-05,2]
[394883751,1764064247229,-718.55966446,6.236e-05,2]
[394883752,1764064247239,-718.55966446,6.236e-05,2]
[394883753,1764064247248,-718.55966446,6.236e-05,2]
[394883754,1764064247257,-718.55966446,6.236e-05,2]
[394883755,1764064247267,-718.55966446,6.236e-05,2]
[394883756,1764064247275,-718.55966446,6.236e-05,2]
[394883757,1764064247285,-718.55966446,6.236e-05,2]
[394883758,1764064247294,-718.55966446,6.236e-05,2]
[394883759,1764064247303,-718.55966446,6.236e-05,2]
[394883760,1764064247312,-718.55966446,6.236e-05,2]
[394883761,1764064247321,-718.55966446,6.236e-05,2]
[394883762,1764064247330,-718.55966446,6.236e-05,2]
[394883763,1764064247340,-718.55966446,6.236e-05,2]
[394883764,1764064247348,-718.55966446,6.236e-05,2]
[394883765,1764064247358,-718.55966446,6.236e-05,2]